Workbook

Sheet Меню 7-10 лет!!!
A1: Примерное двухнедельное цикличное меню для группы продленного дня
A3: 1 неделя
A4: № Сб.рец | B4: Наименование продуктов | C4: Выход | D4: Белки | E4: Жиры | F4: Угл-ды | G4: Энер.ценность (ККАЛ) | H4: В1 | I4: С | J4: А | K4: Е | L4: Са | M4: Р | N4: Mg | O4: Fe
B5: Понедельник
B6: Меню дополнительного питания
A7: № 111/2004 | B7: Борщ Сибирский со сметаной, с мясом | C7: 250/10/11 | D7: 7.88 | E7: 6.99 | F7: 13.06 | G7: 119 | H7: 0.03 | I7: 9.6 | J7: 1.3 | K7: 0.8 | L7: 50.3 | M7: 170.9 | N7: 23.5 | O7: 1
A8: табл 24/1996 | B8: Каша манная молочная с маслом сливочным | C8: 200/10 | D8: 9.9 | E8: 9.8 | F8: 41.8 | G8: 294 | H8: 0.1 | K8: 1.65 | L8: 28.5 | M8: 105 | N8: 43.5 | O8: 1.2
A9: № 639/2004 | B9: Компот из урюка | C9: 200 | D9: 1.2 | F9: 32.6 | G9: 196 | H9: 0.02 | I9: 0.8 | K9: 1.1 | L9: 32.6 | M9: 29.2 | N9: 21 | O9: 1.2
B10: Хлеб сельский/белый | C10: 20/20 | D10: 2.9 | E10: 0.8 | F10: 17 | G10: 90 | H10: 0.04 | K10: 0.4 | L10: 9.4 | M10: 42 | N10: 12 | O10: 1.04
C11: Итого: | D11: =SUM(D7:D10) -> 21.88 | E11: =SUM(E7:E10) -> 17.59 | F11: 104.46 | G11: 699.00 | H11: 0.19 | I11: 10.40 | J11: 1.30 | K11: 3.95 | L11: 120.80 | M11: 347.10 | N11: 100.00 | O11: 4.44
B13: ВТОРНИК
B14: Меню дополнительного питания
A15: № 340/2004 | B15: Омлет натуральный | C15: 200 | D15: 20.00 | E15: 16.00 | F15: 66.53 | G15: 397.33 | H15: 0.01 | I15: 0.01 | J15: 48.00 | K15: 0.40 | L15: 37.33 | M15: 81.07 | N15: 6.13 | O15: 0.91
B16: Сосиска отварная | C16: 100 | D16: 12 | E16: 7.6 | F16: 16 | G16: 180 | H16: 0.3 | K16: 0.5 | L16: 33.4 | M16: 182.8 | N16: 19.78 | O16: 2.4
A17: № 639/2004 | B17: Напиток из сухофруктов | C17: 200 | D17: 0.85 | E17: 0.03 | F17: 34.8 | G17: 143 | H17: 0.06 | K17: 0.1 | L17: 16.5 | M17: 25.8 | N17: 8.4 | O17: 0.7
B18: Хлеб сельский/белый | C18: 20/20 | D18: 2.9 | E18: 0.8 | F18: 17 | G18: 90 | H18: 0.04 | K18: 0.4 | L18: 9.4 | M18: 42 | N18: 12 | O18: 1.04
C19: Итого: | D19: =D15+D16+D17+D18 -> 35.75 | E19: =E15+E16+E17+E18 -> 24.43 | F19: 134.33 | G19: 810.33 | H19: 0.41 | I19: 0.01 | J19: 48.00 | K19: 1.40 | L19: 96.63 | M19: 331.67 | N19: 46.31 | O19: 5.05
B21: СРЕДА
B22: Меню дополнительного питания
A23: № 243/2004 | B23: Суп гороховый с гренками с мясными фрикадельками | C23: 250/10/22 | D23: 5.9 | E23: 6.5 | F23: 20.9 | G23: 232 | H23: 0.12 | I23: 0.8 | K23: 0.8 | L23: 66 | M23: 262 | N23: 38 | O23: 1.8
A24: № 478/2004 | B24: Булочка с сахаром | C24: 50 | D24: 3.88 | E24: 2.36 | F24: 23.55 | G24: 131 | H24: 0.07 | J24: 13 | K24: 0.69 | L24: 11 | M24: 37 | N24: 14.5 | O24: 0.69
A25: Акт 2016 | B25: Компот из кураги и чернослива | C25: 200 | D25: 0.56 | E25: 0.07 | F25: 24.87 | G25: 106.6 | H25: 0.1 | I25: 0.5 | K25: 0.45 | L25: 26.32 | M25: 20.63 | N25: 12.84 | O25: 0.47
B26: Хлеб сельский/белый | C26: 20/20 | D26: 2.9 | E26: 0.8 | F26: 17 | G26: 90 | H26: 0.04 | K26: 0.4 | L26: 9.4 | M26: 42 | N26: 12 | O26: 1.04
C27: Итого: | D27: =SUM(D23:D26) -> 13.24 | E27: =SUM(E23:E26) -> 9.73 | F27: 86.32 | G27: 559.60 | H27: 0.33 | I27: 1.30 | J27: 13.00 | K27: 2.34 | L27: 112.72 | M27: 361.63 | N27: 77.34 | O27: 4.00
B29: ЧЕТВЕРГ
B30: Меню дополнительного питания
A31: № 132/2004 | B31: Рассольник ленинградский со сметаной | C31: 250/10 | D31: 3.9 | E31: 2.1 | F31: 38.9 | G31: 151.3 | H31: 0.06 | I31: 5.34 | J31: 13.4 | K31: 0.2 | L31: 11.5 | M31: 49.8 | N31: 17.8 | O31: 0.68
B32: Блины со сгущенным молоком | C32: 135/20 | D32: 12.8 | E32: 13.9 | F32: 53.8 | G32: 369 | H32: 0.09 | K32: 1.7 | L32: 7 | M32: 63 | N32: 25 | O32: 1.4
A33: №685/2004 | B33: Чай с сахаром | C33: 200/15 | D33: 0.2 | F33: 13.7 | G33: 53 | L33: 0.4 | O33: 0.4
B34: Хлеб сельский/белый | C34: 20/20 | D34: 2.9 | E34: 0.8 | F34: 17 | G34: 90 | H34: 0.04 | K34: 0.4 | L34: 9.4 | M34: 42 | N34: 12 | O34: 1.04
C35: Итого: | D35: =SUM(D31:D34) -> 19.80 | E35: =SUM(E31:E34) -> 16.80 | F35: 123.40 | G35: 663.30 | H35: 0.19 | I35: 5.34 | J35: 13.40 | K35: 2.30 | L35: 28.30 | M35: 154.80 | N35: 54.80 | O35: 3.52
B37: ПЯТНИЦА
B38: Меню дополнительного питания
A39: Т4/302/2004 | B39: Каша пшеничная молочная | C39: 200 | D39: 8.28 | E39: 12.49 | F39: 39.96 | G39: 250 | H39: 0.11 | I39: 0.15 | J39: 52.8 | K39: 0.2 | L39: 94.1 | M39: 121 | N39: 32.1 | O39: 0.86
A40: Акт 2019г | B40: Курица запеченная | C40: 100 | D40: 24.92 | E40: 19.92 | G40: 280 | H40: 0.16 | I40: 2.7 | J40: 107.2 | K40: 2.11 | L40: 54.1 | M40: 190.58 | N40: 24.92 | O40: 2.22
B41: Хлеб сельский/белый | C41: 20/20 | D41: 2.9 | E41: 0.8 | F41: 17 | G41: 90 | H41: 0.04 | K41: 0.4 | L41: 9.4 | M41: 42 | N41: 12 | O41: 1.04
A42: Акт 2016 | B42: Кисель детский витаминизированный | C42: 200 | F42: 19.7 | G42: 74 | L42: 0.2 | O42: 0.03
C43: Итого: | D43: =SUM(D39:D42) -> 36.10 | E43: =SUM(E39:E42) -> 33.21 | F43: 76.66 | G43: 694.00 | H43: 0.31 | I43: 2.85 | J43: 160.00 | K43: 2.71 | L43: 157.80 | M43: 353.58 | N43: 69.02 | O43: 4.15
B45: СУББОТА
B46: Меню дополнительного питания
B47: Бутерброд с сыром | C47: 50 | D47: 6.27 | E47: 7.86 | F47: 14.83 | G47: 155 | H47: 0.04 | I47: 0.15 | J47: 51.5 | K47: 0.45 | L47: 157.2 | M47: 111 | N47: 12.45 | O47: 0.45
A48: табл 4/302/2004 | B48: Каша геркулесовая молочная с маслом сливочным | C48: 200/5 | D48: 11.9 | E48: 6.1 | F48: 35.6 | G48: 230 | H48: 0.1 | I48: 0.17 | J48: 54.6 | K48: 0.5 | L48: 69.8 | M48: 130 | N48: 37.1 | O48: 0.87
A49: № 639/2004 | B49: Напиток из сухофруктов | C49: 200 | D49: 0.85 | E49: 0.03 | F49: 34.8 | G49: 143 | H49: 0.06 | K49: 0.1 | L49: 16.5 | M49: 25.8 | N49: 8.4 | O49: 0.7
C50: Итого: | D50: =SUM(D47:D49) -> 19.02 | E50: =SUM(E47:E49) -> 13.99 | F50: 85.23 | G50: 528.00 | H50: 0.20 | I50: 0.32 | J50: 106.10 | K50: 1.05 | L50: 243.50 | M50: 266.80 | N50: 57.95 | O50: 2.02
C52: Всего за 6 дней: | D52: =D11+D19+D27+D35+D43+D50 -> 145.79 | E52: =E11+E19+E27+E35+E43+E50 -> 115.75 | F52: 610.40 | G52: 3,954.23 | H52: 1.63 | I52: 20.22 | J52: 341.80 | K52: 13.75 | L52: 759.75 | M52: 1,815.58 | N52: 405.42 | O52: 23.18
A54: 2 неделя
B55: Понедельник
B56: Меню дополнительного питания
A57: № 140/2004 | B57: Суп картофельный с макаронными изделиями,фрикадельками из птицы (п/ф) | C57: 200/22 | D57: 3.5 | E57: 32.5 | F57: 173.0 | G57: 0.06 | H57: 5.28% | I57: 8.5 | J57: 0.3 | K57: 11 | L57: 44.6 | M57: 16.7 | N57: 0.7
B58: Плюшка Новомосковская | C58: 50 | D58: 3.88 | E58: 2.36 | F58: 23.55 | G58: 131 | H58: 0.07 | J58: 13 | K58: 0.69 | L58: 11 | M58: 37 | N58: 14.5 | O58: 0.69
A59: Акт 2016 | B59: Компот из кураги и чернослива | C59: 200 | D59: 0.56 | E59: 0.07 | F59: 24.87 | G59: 106.6 | H59: 0.1 | I59: 0.5 | K59: 0.45 | L59: 26.32 | M59: 20.63 | N59: 12.84 | O59: 0.47
B60: Хлеб сельский/белый | C60: 20/20 | D60: 2.9 | E60: 0.8 | F60: 17 | G60: 90 | H60: 0.04 | K60: 0.4 | L60: 9.4 | M60: 42 | N60: 12 | O60: 1.04
C61: Итого: | D61: =SUM(D57:D60) -> 10.85 | E61: =SUM(E57:E60) -> 35.73 | F61: 238.42 | G61: 327.66 | H61: 0.26 | I61: 9.00 | J61: 13.30 | K61: 12.54 | L61: 91.32 | M61: 116.33 | N61: 40.04 | O61: 2.20
B63: ВТОРНИК
B64: Меню дополнительного питания
A65: № 96/2004 | B65: Масло сливочное (порциями) | C65: 10 | D65: 0.08 | E65: 7.25 | F65: 0.13 | G65: 66 | J65: 59 | K65: 0.1 | L65: 1 | M65: 2
A66: № 366/2004 | B66: Запеканка из творога со сгущенным молоком | C66: 200/20 | D66: 18.80 | E66: 18.67 | F66: 78.80 | G66: 549.33 | H66: 0.08 | I66: 0.27 | J66: 101.07 | K66: 0.00 | L66: 188.00 | M66: 243.60 | N66: 29.47 | O66: 0.71
A67: № 686/2004 | B67: Чай с сахаром, лимоном | C67: 200/15/7 | D67: 0.2 | E67: 0.1 | F67: 13.9 | G67: 55 | I67: 1.12 | L67: 2.9 | M67: 1.3 | N67: 0.7 | O67: 0.08
B68: Батон высший сорт | C68: 30 | D68: 2.25 | E68: 0.87 | F68: 15.42 | G68: 79 | H68: 0.02 | K68: 0.2 | L68: 4.7 | M68: 21.1 | N68: 6.3 | O68: 0.52
C69: Итого: | D69: =SUM(D65:D68) -> 21.33 | E69: =SUM(E65:E68) -> 26.89 | F69: 108.25 | G69: 749.33 | H69: 0.10 | I69: 1.39 | J69: 160.07 | K69: 0.30 | L69: 196.60 | M69: 268.00 | N69: 36.47 | O69: 1.31
B71: СРЕДА
B72: Меню дополнительного питания
A73: № 140/2004 | B73: Суп из овощей с фрикадельками мясными (п/ф) | C73: 250/11 | D73: 7.6 | E73: 36.5 | F73: 198 | G73: 0.02 | H73: 8 | I73: 14.7 | J73: 0.3 | K73: 23.9 | L73: 39 | M73: 13 | N73: 0.54
A74: 174/2017 | B74: Каша кукурузная молочная с маслом сливочным | C74: 200/5 | D74: 5.69 | E74: 5.79 | F74: 38.0 | G74: 227.4 | H74: 0.07 | I74: 0.7 | J74: 27.1 | K74: 0.55 | L74: 103.0 | M74: 114.2 | N74: 23.7 | O74: 1.25
A75: Акт 2016 | B75: Кисель детский витаминизированный | C75: 200 | F75: 19.7 | G75: 74 | L75: 0.2 | O75: 0.03
B76: Хлеб сельский/белый | C76: 30/30 | D76: 4.3 | E76: 1.3 | F76: 25.4 | G76: 136 | H76: 0.06 | K76: 0.6 | L76: 14.1 | M76: 63 | N76: 18 | O76: 1.56
C77: Итого: | D77: =SUM(D73:D76) -> 17.59 | E77: =SUM(E73:E76) -> 43.59 | F77: 281.14 | G77: 437.42 | H77: 8.13 | I77: 15.42 | J77: 27.40 | K77: 25.05 | L77: 156.31 | M77: 190.16 | N77: 42.25 | O77: 2.84
B79: ЧЕТВЕРГ
B80: Меню дополнительного питания
A81: табл 4/302/2004 | B81: Каша рисовая молочная с маслом сливочным | C81: 200/5 | D81: 9.8 | E81: 8.8 | F81: 36.8 | G81: 209.9 | H81: 0.03 | I81: 0.52 | J81: 23.7 | K81: 0.2 | L81: 107 | M81: 94.2 | N81: 17.4 | O81: 0.2
B82: Блины с молоком сгущенным | C82: 90/20 | D82: 0.66 | E82: 0.12 | F82: 2.28 | G82: 14 | H82: 0.01 | I82: 4.67 | K82: 1.2 | L82: 25 | M82: 14 | N82: 7.6 | O82: 0.31
A83: № 686/2004 | B83: Чай с черносливом | C83: 200/10 | D83: 0.2 | E83: 0.1 | F83: 32.6 | G83: 263 | I83: 1.12 | L83: 2.9 | M83: 1.3 | N83: 0.7 | O83: 0.08
B84: Хлеб сельский/белый | C84: 20/20 | D84: 2.9 | E84: 0.8 | F84: 17 | G84: 90 | H84: 0.04 | K84: 0.4 | L84: 9.4 | M84: 42 | N84: 12 | O84: 1.04
C85: Итого: | D85: =SUM(D81:D84) -> 13.56 | E85: =SUM(E81:E84) -> 9.82 | F85: 88.68 | G85: 576.9 | H85: 0.08 | I85: 6.31 | J85: 23.7 | K85: 1.8 | L85: 144.3 | M85: 151.5 | N85: 37.7 | O85: 1.63
B87: ПЯТНИЦА
B88: Меню дополнительного питания
A89: № 124/2004 | B89: Щи из свежей капусты с картофелем, сметаной, мясом | C89: 250/10/11 | D89: 4.16 | E89: 9.2 | F89: 96 | G89: 0.02 | H89: 8 | I89: 14.7 | J89: 0.3 | K89: 23.9 | L89: 39 | M89: 13 | N89: 0.54 | O89: 1.9
A90: табл 4/302/2004 | B90: Каша геркулесовая молочная с маслом сливочным | C90: 200/5 | D90: 11.9 | E90: 6.1 | F90: 35.6 | G90: 230 | H90: 0.1 | I90: 0.17 | J90: 54.6 | K90: 0.5 | L90: 69.8 | M90: 130 | N90: 37.1 | O90: 0.87
A91: № 639/2004 | B91: Напиток из сухофруктов | C91: 200 | D91: 0.85 | E91: 0.03 | F91: 34.8 | G91: 143 | H91: 0.06 | K91: 0.1 | L91: 16.5 | M91: 25.8 | N91: 8.4 | O91: 0.7
B92: Хлеб сельский/белый | C92: 20/20 | D92: 2.9 | E92: 0.8 | F92: 17 | G92: 90 | H92: 0.04 | K92: 0.4 | L92: 9.4 | M92: 42 | N92: 12 | O92: 1.04
C93: Итого: | D93: =SUM(D89:D92) -> 19.81 | E93: =SUM(E89:E92) -> 16.13 | F93: 183.40 | G93: 463.02 | H93: 8.20 | I93: 14.87 | J93: 54.90 | K93: 24.90 | L93: 134.70 | M93: 210.80 | N93: 58.04 | O93: 4.51
B95: СУББОТА
B96: Меню дополнительного питания
A97: № 96/2004 | B97: Масло сливочное (порциями) | C97: 10 | D97: 0.08 | E97: 7.25 | F97: 0.13 | G97: 66 | J97: 59 | K97: 0.1 | L97: 1 | M97: 2
A98: №332/516/2004 | B98: Макаронные изделия отварные с сыром | C98: 180 | D98: 6.9 | E98: 26 | F98: 181 | G98: 0.04 | H98: 0.1 | I98: 52 | J98: 0.9 | K98: 43.8 | L98: 76.2 | M98: 9.3 | N98: 0.9 | O98: 0.86
A99: №685/2004 | B99: Чай с сахаром | C99: 200/15 | D99: 0.2 | F99: 13.7 | G99: 53 | L99: 0.4 | O99: 0.4
B100: Батон высший сорт | C100: 30 | D100: 2.25 | E100: 0.87 | F100: 15.42 | G100: 79 | H100: 0.02 | K100: 0.2 | L100: 4.7 | M100: 21.1 | N100: 6.3 | O100: 0.52
C101: Итого: | D101: =SUM(D97:D100) -> 9.43 | E101: =SUM(E97:E100) -> 34.12 | F101: 210.25 | G101: 198.04 | H101: 0.08 | I101: 52.00 | J101: 59.90 | K101: 44.10 | L101: 82.30 | M101: 32.40 | N101: 7.20 | O101: 1.78
C103: Всего: | D103: =D61+D69+D77+D85+D93+D101 -> 92.57 | E103: =E61+E69+E77+E85+E93+E101 -> 166.28 | F103: 1110.14 | G103: 2752.37 | H103: 16.85 | I103: 98.99 | J103: 339.27 | K103: 108.69 | L103: 805.53 | M103: 969.19 | N103: 221.70 | O103: 14.27
C104: Всего за 12 дней: | D104: =D52+D103 -> 238.36 | E104: =E52+E103 -> 282.03 | F104: 1,720.54 | G104: 6,706.61 | H104: 18.49 | I104: 119.21 | J104: 681.07 | K104: 122.44 | L104: 1,565.28 | M104: 2,784.77 | N104: 627.12 | O104: 37.44
C105: В среднем на 1 учащегося в день | D105: =D104/12 -> 19.86 | E105: =E104/12 -> 23.50 | F105: 143.38 | G105: 558.88 | H105: 1.54 | I105: 9.93 | J105: 56.76 | K105: 10.20 | L105: 130.44 | M105: 232.06 | N105: 52.26 | O105: 3.12
